fUSD/lending_fUSD_20240624
["ID","MTS","AMOUNT","RATE_DAILY","PERIOD"]
[330222224,1719190232058,-186.85,0.00011478,2]
[330222225,1719190232067,-499.76473211,0.0001154,2]
[330222226,1719190232077,-1172.985941,0.00011541,2]
[330222227,1719190232086,-150.0,0.00011589,2]
[330222228,1719190232097,-499.99,0.00011599,2]
[330222229,1719190232107,-156.6543,0.00011609,2]
[330222230,1719190232116,-202.44445,0.00011643,2]
[330222231,1719190232126,-202.44445,0.00011643,2]
[330222232,1719190232136,-250.0,0.00011643,2]
[330222233,1719190232145,-360.0,0.00011648,2]
[330222234,1719190232155,-1495.56848634,0.00011761,2]
[330222235,1719190232167,-3395.3935,0.00011761,2]
[330222236,1719190232179,-632.46840949,0.00011761,2]
[330222237,1719190232190,-281.19172138,0.00011761,2]
[330222238,1719190232220,-3790.41395587,0.00011761,2]
[330222239,1719190232232,-600.0,0.00011761,2]
[330222240,1719190232244,-2073.01374846,0.00011761,2]
[330222241,1719190232277,-9643.47017846,0.00011761,2]
[330222243,1719190232287,-167.32,0.00011954,2]
[330222244,1719190232296,-1000.0,0.00012,2]
[330222245,1719190232306,-1303.0,0.00012549,2]
[330222246,1719190232315,-258.4282,0.00012559,2]
[330222247,1719190232325,-557.9000088,0.00012602,2]
[330222248,1719190232334,-500.0,0.00012602,2]
[330222249,1719190232344,-500.0,0.00012602,2]
[330222250,1719190232353,-500.0,0.00012602,2]
[330222251,1719190232362,-66239.76884294,0.00012659,2]
[330222253,1719190232373,-3462.50905,0.00012659,2]
[330222255,1719190232385,-1341.7611196,0.00012659,2]
[330222258,1719190232396,-713.45,0.00012659,2]
[330222260,1719190232408,-2643.95885393,0.00012659,2]
[330222262,1719190232442,-5008.64553353,0.00012659,2]
[330222263,1719190232452,-1000.0,0.00012659,2]
[330222264,1719190232461,-570.72379168,0.00012659,2]
[330222265,1719190232476,-100000.0,0.00012759,2]
[330222266,1719190232485,-1000.0,0.00012759,2]
[330222267,1719190232494,-42560.2149,0.00012759,2]
[330222268,1719190232504,-155.5699,0.00012759,2]
[330222269,1719190232513,-2444.2404,0.00012759,2]
[330222270,1719190232522,-185.587984,0.00012817,2]
[330222271,1719190232531,-2948.935506,0.00012817,2]
[330222272,1719190232540,-214.205308,0.00012817,2]
[330222273,1719190232549,-3771.826453,0.00012817,2]
[330222274,1719190232559,-183.75507,0.00012817,2]
[330222275,1719190232568,-163.60172734,0.00012896,2]
[330222276,1719190232577,-163.60172734,0.00012896,2]
[330222277,1719190232587,-640.0,0.00012901,2]
[330222278,1719190232596,-186.85,0.00012913,2]
[330222279,1719190232606,-570.72379164,0.00012969,2]
[330222280,1719190232616,-2948.935506,0.00012977,2]
[330222281,1719190232625,-214.205308,0.00012977,2]
[330222282,1719190232635,-3771.826453,0.00012977,2]
[330222283,1719190232645,-7474.48203676,0.00013018,2]
[330222284,1719190232655,-5000.0,0.00013018,2]
[330222285,1719190232665,-5000.0,0.00013018,2]
[330222286,1719190232675,-2798.97253564,0.00013037,2]
[330222287,1719190232684,-360.0,0.00013104,2]
[330222288,1719190232694,-185.587984,0.00013137,2]
[330222289,1719190232707,-2948.935506,0.00013137,2]
[330222290,1719190232721,-214.205308,0.00013137,2]
[330222291,1719190232730,-3771.826453,0.00013137,2]
[330222292,1719190232740,-305.44,0.00013178,2]
[330222293,1719190232751,-720.35067502,0.00013275,2]
[330222294,1719190232760,-720.35067502,0.00013275,2]
[330222295,1719190232769,-570.72379164,0.0001328,2]
[330222296,1719190232779,-2948.935506,0.00013297,2]
[330222297,1719190232789,-214.205308,0.00013297,2]
[330222298,1719190232799,-3771.826453,0.00013297,2]
[330222299,1719190232808,-2798.97253558,0.00013303,2]
[330222300,1719190232817,-167.42374753,0.00013324,2]
[330222301,1719190232827,-155.0,0.00013326,2]
[330222302,1719190232836,-155.0,0.00013326,2]
[330222303,1719190232845,-7415.6,0.00013386,2]
[330222304,1719190232855,-500.0,0.00013424,2]
[330222305,1719190232864,-500.0,0.00013424,2]
[330222306,1719190232874,-10000.0,0.00013425,2]
[330222307,1719190232884,-185.587984,0.00013458,2]
[330222308,1719190232894,-2948.935506,0.00013458,2]
[330222309,1719190232903,-214.205308,0.00013458,2]
[330222310,1719190232913,-3771.826453,0.00013458,2]
[330222311,1719190232923,-339.46001548,0.00013563,2]
[330222312,1719190232932,-339.46001548,0.00013563,2]
[330222313,1719190232942,-2798.97253558,0.00013569,2]
[330222314,1719190232951,-570.72379164,0.0001359,2]
[330222315,1719190232961,-753.59338141,0.0001365,2]
[330222316,1719190232974,-753.59338141,0.0001365,2]
[330222317,1719190232983,-895.93,0.00013699,2]
[330222318,1719190232993,-1185.21,0.00013699,5]
[330222319,1719190233002,-2435.23,0.00013699,2]
[330222320,1719190233014,-415.19,0.00013699,2]
[330222321,1719190233024,-2751.0,0.00013699,2]
[330222322,1719190233034,-200.0,0.00013699,2]
[330222323,1719190233044,-885.20554647,0.000137,2]
[330222324,1719190233054,-7515.73,0.00013706,2]
[330222325,1719190233064,-3540.98531349,0.00013719,2]
[330222326,1719190233074,-150.0,0.00013732,2]
[330222327,1719190233084,-500.0,0.00013784,2]
[330222328,1719190233093,-200.0,0.00013784,2]
[330222329,1719190233103,-1576.40642,0.0001379,2]
[330222330,1719190233112,-6017.9124307,0.00013799,2]
[330222331,1719190233122,-6017.9124307,0.00013799,2]
[330222332,1719190233354,-6017.9124307,0.00013799,2]
[330222333,1719190233374,-1565.74596654,0.000138,2]
[330222334,1719190233383,-7520.0,0.00013817,2]
[330222335,1719190233392,-2798.97253558,0.00013835,2]
[330222336,1719190233402,-6017.9124307,0.00013877,2]
[330222337,1719190233411,-39966.92021255,0.00013899,2]
[330222338,1719190233420,-561.6533,0.000139,2]
[330222339,1719190233429,-178.78024251,0.000139,2]
[330222340,1719190233438,-211.43806313,0.000139,2]
[330222341,1719190233448,-7500.0,0.000139,2]
[330222342,1719190233456,-270.30461064,0.000139,2]
[330222343,1719190233467,-201.65732966,0.000139,2]
[330222344,1719190233476,-17322.23243261,0.000139,2]
[330222345,1719190233485,-570.72379164,0.000139,2]
[330222346,1719190233495,-260.93861284,0.000139,2]
[330222347,1719190233503,-262.34729968,0.000139,2]
[330222348,1719190233513,-1000.0,0.00013902,2]
[330222349,1719190233522,-6881.03236481,0.00013902,2]
[330222350,1719190233695,502.16,9.366e-05,2]
[330222355,1719190238072,-502.16,0.0001163,2]
[330222356,1719190238081,-155.0,0.00013326,2]
[330222357,1719190238090,-40.60274,0.00013894,2]
[330222358,1719190238102,-461.55726,0.00013894,2]
[330222359,1719190238113,-3118.96763519,0.00013902,2]
[330222360,1719190238123,-165.354322,0.00013922,2]
[330222361,1719190238132,-166.75,0.00013956,2]
[330222362,1719190238142,-22497.0,0.00013966,2]
[330222363,1719190238151,-1741.76,0.00013982,2]
[330222364,1719190238162,-155.0,0.00013988,2]
[330222365,1719190238171,-1442.7188835,0.00013989,2]
[330222366,1719190238180,-387.021555,0.00013989,2]
[330222367,1719190238190,-2125.3049904,0.00013989,2]
[330222368,1719190238200,-8019.11860104,0.00013989,2]
[330222369,1719190238211,-3512.65329116,0.00013989,2]
[330222370,1719190238223,-2373.1700286,0.00013989,2]
[330222371,1719190238232,-2261.99999802,0.0001399,2]
[330222372,1719190238242,-1219.2388996,0.0001399,2]
[330222373,1719190238251,-151.0,0.0001399,2]
[330222374,1719190238260,-151.0,0.0001399,2]
[330222375,1719190238270,-151.0,0.0001399,2]
[330222376,1719190238279,-151.0,0.0001399,2]
[330222377,1719190238289,-338.405699,0.0001399,2]
[330222378,1719190238298,-151.0,0.0001399,2]
[330222379,1719190238307,-338.405699,0.0001399,2]
[330222380,1719190238316,-151.0,0.0001399,2]
[330222381,1719190238326,-2488.125469,0.0001399,2]
[330222382,1719190238336,-2488.125469,0.0001399,2]
[330222383,1719190238345,-426.1600916,0.0001399,2]
[330222385,1719190238355,-166.314781,0.0001399,2]
[330222387,1719190238364,-151.0,0.0001399,2]
[330222389,1719190238373,-166.314781,0.0001399,2]
[330222391,1719190238382,-151.0,0.0001399,2]
[330222393,1719190238391,-2340.2318493,0.0001399,2]
[330222395,1719190238401,-151.0,0.0001399,2]
[330222397,1719190238410,-2296.41524968,0.0001399,2]
[330222399,1719190238422,-1391.18950319,0.0001399,2]
[330222401,1719190238433,-5296.29593913,0.0001399,2]
[330222403,1719190238443,-596.11247903,0.0001399,2]
[330222405,1719190238454,-1904.99238,0.0001399,2]
[330222407,1719190238467,-775.44461026,0.0001399,2]
[330222410,1719190238481,-810.16228092,0.0001399,2]
[330222412,1719190238493,-774.91831638,0.0001399,2]
[330222414,1719190238504,-4122.27062541,0.0001399,2]
[330222416,1719190238514,-172.962714,0.0001399,2]
[330222418,1719190238523,-151.0,0.0001399,2]
[330222420,1719190238533,-172.962714,0.0001399,2]
[330222422,1719190238543,-151.0,0.0001399,2]
[330222424,1719190238552,-317.428721,0.0001399,2]
[330222426,1719190238562,-151.0,0.0001399,2]
[330222428,1719190238571,-317.428721,0.0001399,2]
[330222430,1719190238580,-151.0,0.0001399,2]
[330222432,1719190238590,-155.616728,0.0001399,2]
[330222434,1719190238599,-444.438065,0.0001399,2]
[330222436,1719190238610,-444.438065,0.0001399,2]
[330222438,1719190238619,-151.0,0.0001399,2]
[330222440,1719190238629,-9258.6394981,0.0001399,2]
[330222442,1719190238638,-1786.5977627,0.00013999,2]
[330222444,1719190238647,-813.0,0.00014,2]
[330222446,1719190238656,-20211.3795223,0.00014,2]
[330222448,1719190238669,-1999.05404821,0.00014,2]
[330222452,1719190238689,-729.17517403,0.00014,2]
[330222454,1719190238705,-529.82133345,0.00014,2]
[330222456,1719190238717,-350.1,0.00014,2]
[330222458,1719190238730,-1740.75841173,0.00014,2]
[330222460,1719190238742,-508.11494644,0.00014,2]
[330222463,1719190238754,-807.04598073,0.00014,2]
[330222465,1719190238766,-8119.95917606,0.00014,2]
[330222467,1719190238779,-479.23585153,0.00014,2]
[330222469,1719190238791,-500.0,0.00014,2]
[330222473,1719190238815,-16169.82675154,0.00014,2]
[330222475,1719190238826,-300.32,0.00014,2]
[330222477,1719190238837,-6720.6415096,0.00014,2]
[330222480,1719190238849,-7244.37471834,0.00014,2]
[330222482,1719190238860,-7173.35954135,0.00014,2]
[330222484,1719190238871,-9901.01985224,0.00014,2]
[330222486,1719190238882,-5085.22599903,0.00014,2]
[330222488,1719190238894,-5316.55835596,0.00014,2]
[330222491,1719190238905,-10574.23493044,0.00014,2]
[330222493,1719190238916,-4563.16507407,0.00014,2]
[330222495,1719190238928,-403.19842816,0.00014,2]
[330222497,1719190238939,-790.78038868,0.00014,2]
[330222499,1719190238950,-1729.55783652,0.00014,2]
[330222502,1719190238961,-392.01545391,0.00014,2]
[330222504,1719190238976,-586.27968751,0.00014,2]
[330222506,1719190238987,-9502.02013379,0.00014,2]
[330222508,1719190238998,-1151.7587563,0.00014,2]
[330222510,1719190239010,-1153.0,0.00014,2]
[330222580,1719190239714,-3726.19972867,0.00014,2]
[330222582,1719190239729,-1517.50982453,0.00014,2]
[330222585,1719190239741,-3163.29177813,0.00014,2]
[330222587,1719190239754,-1134.80689169,0.00014,2]
[330222589,1719190239766,-1978.40158812,0.00014,2]
[330222593,1719190239797,-671.65301558,0.00014,2]
[330222595,1719190239809,-444.11719502,0.00014,2]
[330222638,1719190240349,-339.46001548,0.00013489,2]
[330222640,1719190240359,-2344438.62940891,0.00014,2]
[330222642,1719190240369,-700379.2976136,0.00014,2]
[330222644,1719190240378,-184459.29012917,0.00014,2]
[330222647,1719190240388,-1000.0,0.00014,2]
[330222649,1719190240397,-299775.80705538,0.00014,2]
[330222650,1719190240407,-151.0,0.00014,2]
[330222653,1719190240416,-151.0,0.00014,2]
[330222655,1719190240426,-151.0,0.00014,2]
[330222657,1719190240435,-151.0,0.00014,2]
[330222659,1719190240445,-151.0,0.00014,2]
[330222661,1719190240454,-151.0,0.00014,2]
[330222663,1719190240463,-990105.2514228,0.00014,2]
[330222665,1719190240472,-151.0,0.00014,2]
[330222667,1719190240482,-151.0,0.00014,2]
[330222669,1719190240491,-151.0,0.00014,2]
[330222671,1719190240500,-151.0,0.00014,2]
[330222673,1719190240509,-246.838132,0.00014,2]
[330222675,1719190240518,-151.0,0.00014,2]
[330222677,1719190240527,-151.0,0.00014,2]
[330222679,1719190240536,-151.0,0.00014,2]
[330222681,1719190240545,-152.117226,0.00014,2]
[330222683,1719190240554,-151.0,0.00014,2]
[330222685,1719190240564,-152.203621,0.00014,2]
[330222687,1719190240573,-151.0,0.00014,2]
[330222689,1719190240582,-151.0,0.00014,2]
[330222691,1719190240591,-151.0,0.00014,2]
[330222693,1719190240601,-151.0,0.00014,2]
[330222695,1719190240610,-151.0,0.00014,2]
[330222697,1719190240620,-151.0,0.00014,2]
[330222699,1719190240630,-151.0,0.00014,2]
[330222701,1719190240639,-151.0,0.00014,2]
[330222703,1719190240648,-151.0,0.00014,2]
[330222705,1719190240657,-151.0,0.00014,2]
[330222707,1719190240665,-151.0,0.00014,2]
[330222709,1719190240675,-151.0,0.00014,2]
[330222711,1719190240685,-151.0,0.00014,2]
[330222712,1719190240694,-151.0,0.00014,2]
[330222715,1719190240706,-151.0,0.00014,2]
[330222716,1719190240716,-151.0,0.00014,2]
[330222718,1719190240726,-162.695613,0.00014,2]
[330222720,1719190240736,-151.0,0.00014,2]
[330222722,1719190240746,-151.0,0.00014,2]
[330222724,1719190240755,-151.0,0.00014,2]
[330222725,1719190240764,-156.070932,0.00014,2]
[330222727,1719190240774,-151.0,0.00014,2]
[330222728,1719190240786,-151.0,0.00014,2]
[330222729,1719190240797,-151.0,0.00014,2]
[330222730,1719190240808,-151.0,0.00014,2]
[330222731,1719190240817,-151.0,0.00014,2]
[330222732,1719190240828,-347.008189,0.00014,2]
[330222733,1719190240837,-151.0,0.00014,2]
[330222734,1719190240847,-347.008189,0.00014,2]
[330222735,1719190240857,-152.201775,0.00014,2]
[330222736,1719190240867,-347.008189,0.00014,2]
[330222737,1719190240877,-347.008189,0.00014,2]
[330222738,1719190240888,-152.80363,0.00014,2]
[330222739,1719190240897,-151.0,0.00014,2]
[330222740,1719190240907,-151.0,0.00014,2]
[330222741,1719190240917,-151.0,0.00014,2]
[330222742,1719190240927,-151.0,0.00014,2]
[330222743,1719190240936,-151.0,0.00014,2]
[330222744,1719190240947,-151.0,0.00014,2]
[330222745,1719190240958,-151.0,0.00014,2]
[330222746,1719190240968,-151.0,0.00014,2]
[330222747,1719190240979,-151.0,0.00014,2]
[330222748,1719190240988,-151.0,0.00014,2]
[330222749,1719190240997,-151.0,0.00014,2]
[330222750,1719190241007,-151.0,0.00014,2]
[330222751,1719190241017,-151.0,0.00014,2]
[330222752,1719190241027,-250.970386,0.00014,2]
[330222753,1719190241036,-151.0,0.00014,2]
[330222754,1719190241046,-151.0,0.00014,2]
[330222755,1719190241056,-151.0,0.00014,2]
[330222756,1719190241066,-151.0,0.00014,2]
[330222757,1719190241075,-162.667628,0.00014,2]
[330222758,1719190241084,-176.356856,0.00014,2]
[330222759,1719190241094,-151.0,0.00014,2]
[330222760,1719190241104,-151.0,0.00014,2]
[330222761,1719190241114,-151.0,0.00014,2]
[330222762,1719190241123,-151.0,0.00014,2]
[330222763,1719190241133,-151.0,0.00014,2]
[330222764,1719190241143,-151.0,0.00014,2]
[330222765,1719190241153,-151.0,0.00014,2]
[330222766,1719190241163,-151.0,0.00014,2]
[330222767,1719190241173,-151.0,0.00014,2]
[330222768,1719190241182,-151.0,0.00014,2]
[330222769,1719190241192,-151.0,0.00014,2]
[330222770,1719190241201,-151.0,0.00014,2]
[330222771,1719190241211,-151.0,0.00014,2]
[330222772,1719190241221,-151.0,0.00014,2]
[330222773,1719190241231,-151.0,0.00014,2]
[330222774,1719190241240,-161.283674,0.00014,2]
[330222775,1719190241250,-151.0,0.00014,2]
[330222776,1719190241259,-151.0,0.00014,2]
[330222777,1719190241269,-151.0,0.00014,2]
[330222778,1719190241278,-190.638997,0.00014,2]
[330222779,1719190241287,-151.0,0.00014,2]
[330222780,1719190241297,-151.0,0.00014,2]
[330222781,1719190241307,-151.0,0.00014,2]
[330222782,1719190241316,-151.0,0.00014,2]
[330222783,1719190241325,-151.0,0.00014,2]
[330222784,1719190241334,-151.0,0.00014,2]
[330222785,1719190241344,-151.0,0.00014,2]
[330222786,1719190241353,-151.0,0.00014,2]
[330222787,1719190241363,-151.0,0.00014,2]
[330222788,1719190241372,-151.0,0.00014,2]
[330222789,1719190241381,-151.0,0.00014,2]
[330222790,1719190241390,-151.0,0.00014,2]
[330222791,1719190241400,-151.0,0.00014,2]
[330222792,1719190241410,-151.0,0.00014,2]
[330222793,1719190241420,-151.0,0.00014,2]
[330222794,1719190241430,-287.65682103,0.00014,2]
[330222795,1719190241440,-151.0,0.00014,2]
[330222796,1719190241450,-151.0,0.00014,2]
[330222797,1719190241460,-245.864444,0.00014,2]
[330222798,1719190241469,-245.864444,0.00014,2]
[330222799,1719190241479,-245.864444,0.00014,2]
[330222800,1719190241489,-245.864444,0.00014,2]
[330222801,1719190241498,-245.864444,0.00014,2]
[330222802,1719190241506,-245.864444,0.00014,2]
[330222803,1719190241516,-245.864444,0.00014,2]
[330222804,1719190241526,-245.864444,0.00014,2]
[330222805,1719190241536,-245.864444,0.00014,2]
[330222806,1719190241545,-245.864444,0.00014,2]
[330222807,1719190241555,-245.864444,0.00014,2]
[330222808,1719190241564,-245.864444,0.00014,2]
[330222809,1719190241573,-613.273028,0.00014,2]
[330222810,1719190241583,-613.273028,0.00014,2]
[330222811,1719190241592,-613.273028,0.00014,2]
[330222812,1719190241601,-613.273028,0.00014,2]
[330222813,1719190241610,-613.273028,0.00014,2]
[330222814,1719190241620,-613.273028,0.00014,2]
[330222815,1719190241630,-151.0,0.00014,2]
[330222816,1719190241640,-151.0,0.00014,2]
[330222817,1719190241650,-151.0,0.00014,2]
[330222818,1719190241660,-151.0,0.00014,2]
[330222819,1719190241670,-151.0,0.00014,2]
[330222820,1719190241679,-151.0,0.00014,2]
[330222821,1719190241689,-151.0,0.00014,2]
[330222822,1719190241701,-159.816841,0.00014,2]
[330222823,1719190241712,-151.0,0.00014,2]
[330222824,1719190241724,-151.0,0.00014,2]
[330222825,1719190241734,-197.764398,0.00014,2]
[330222826,1719190241746,-296.793227,0.00014,2]
[330222827,1719190241755,-296.793227,0.00014,2]
[330222828,1719190241765,-296.793227,0.00014,2]
[330222829,1719190241774,-296.793227,0.00014,2]
[330222830,1719190241784,-296.793227,0.00014,2]
[330222831,1719190241794,-296.793227,0.00014,2]
[330222832,1719190241803,-201.229792,0.00014,2]
[330222833,1719190241812,-201.229792,0.00014,2]
[330222834,1719190241822,-201.229792,0.00014,2]
[330222835,1719190241831,-201.229792,0.00014,2]
[330222836,1719190241840,-201.229792,0.00014,2]
[330222837,1719190241849,-201.229792,0.00014,2]
[330222838,1719190241858,-296.793227,0.00014,2]
[330222839,1719190241868,-296.793227,0.00014,2]
[330222840,1719190241877,-296.793227,0.00014,2]
[330222841,1719190241886,-296.793227,0.00014,2]
[330222842,1719190241895,-296.793227,0.00014,2]
[330222843,1719190241905,-201.229792,0.00014,2]
[330222844,1719190241915,-296.793227,0.00014,2]
[330222845,1719190241925,-201.229792,0.00014,2]
[330222846,1719190241934,-201.229792,0.00014,2]
[330222847,1719190241944,-201.229792,0.00014,2]
[330222848,1719190241953,-201.229792,0.00014,2]
[330222849,1719190241963,-201.229792,0.00014,2]
[330222850,1719190241974,-151.0,0.00014,2]
[330222851,1719190241984,-151.0,0.00014,2]
[330222852,1719190241994,-151.0,0.00014,2]
[330222853,1719190242002,-151.0,0.00014,2]
[330222854,1719190242011,-151.0,0.00014,2]
[330222855,1719190242023,-151.0,0.00014,2]
[330222856,1719190242032,-151.0,0.00014,2]
[330222857,1719190242042,-151.0,0.00014,2]
[330222858,1719190242051,-151.0,0.00014,2]
[330222859,1719190242061,-151.0,0.00014,2]
[330222860,1719190242070,-151.0,0.00014,2]
[330222861,1719190242079,-151.0,0.00014,2]
[330222862,1719190242088,-151.0,0.00014,2]
[330222863,1719190242098,-151.0,0.00014,2]
[330222864,1719190242107,-151.0,0.00014,2]
[330222865,1719190242117,-151.0,0.00014,2]
[330222866,1719190242126,-151.0,0.00014,2]
[330222867,1719190242135,-151.0,0.00014,2]
[330222868,1719190242144,-862.698462,0.00014,2]
[330222869,1719190242154,-862.698462,0.00014,2]
[330222870,1719190242163,-862.698462,0.00014,2]
[330222871,1719190242173,-862.698462,0.00014,2]
[330222872,1719190242182,-862.698462,0.00014,2]
[330222873,1719190242192,-862.698462,0.00014,2]
[330222874,1719190242202,-862.698462,0.00014,2]
[330222875,1719190242212,-862.698462,0.00014,2]
[330222876,1719190242222,-862.698462,0.00014,2]
[330222877,1719190242232,-862.698462,0.00014,2]
[330222878,1719190242241,-862.698462,0.00014,2]
[330222879,1719190242251,-862.698462,0.00014,2]
[330222880,1719190242260,-151.0,0.00014,2]
[330222881,1719190242270,-151.0,0.00014,2]
[330222882,1719190242283,-158.972003,0.00014,2]
[330222883,1719190242293,-151.0,0.00014,2]
[330222884,1719190242304,-151.0,0.00014,2]
[330222885,1719190242315,-151.0,0.00014,2]
[330222886,1719190242324,-151.0,0.00014,2]
[330222887,1719190242333,-151.0,0.00014,2]
[330222888,1719190242343,-151.0,0.00014,2]
[330222889,1719190242352,-151.0,0.00014,2]
[330222890,1719190242362,-151.0,0.00014,2]
[330222891,1719190242371,-151.0,0.00014,2]
[330222892,1719190242381,-151.0,0.00014,2]
[330222893,1719190242390,-151.0,0.00014,2]
[330222894,1719190242399,-151.0,0.00014,2]
[330222895,1719190242409,-151.0,0.00014,2]
[330222896,1719190242418,-151.0,0.00014,2]
[330222897,1719190242427,-285.329442,0.00014,2]
[330222898,1719190242437,-151.0,0.00014,2]
[330222899,1719190242446,-151.0,0.00014,2]
[330222900,1719190242455,-151.0,0.00014,2]
[330222901,1719190242464,-151.0,0.00014,2]
[330222902,1719190242477,-151.0,0.00014,2]
[330222903,1719190242487,-151.0,0.00014,2]
[330222904,1719190242496,-151.0,0.00014,2]
[330222905,1719190242506,-151.0,0.00014,2]
[330222906,1719190242514,-151.0,0.00014,2]
[330222907,1719190242523,-151.0,0.00014,2]
[330222908,1719190242532,-545.000507,0.00014,2]
[330222909,1719190242541,-171.044553,0.00014,2]
[330222910,1719190242550,-545.000507,0.00014,2]
[330222911,1719190242559,-545.000507,0.00014,2]
[330222912,1719190242568,-545.000507,0.00014,2]
[330222913,1719190242577,-545.000507,0.00014,2]
[330222914,1719190242587,-545.000507,0.00014,2]
[330222915,1719190242596,-545.000507,0.00014,2]
[330222916,1719190242606,-545.000507,0.00014,2]
[330222917,1719190242615,-545.000507,0.00014,2]
[330222918,1719190242625,-545.000507,0.00014,2]
[330222919,1719190242634,-545.000507,0.00014,2]
[330222920,1719190242643,-545.000507,0.00014,2]
[330222921,1719190242653,-151.0,0.00014,2]
[330222922,1719190242663,-151.0,0.00014,2]
[330222923,1719190242672,-151.0,0.00014,2]
[330222924,1719190242682,-151.0,0.00014,2]
[330222925,1719190242691,-151.0,0.00014,2]
[330222926,1719190242701,-151.0,0.00014,2]
[330222927,1719190242714,-151.0,0.00014,2]
[330222928,1719190242725,-151.0,0.00014,2]
[330222929,1719190242735,-188.272244,0.00014,2]
[330222930,1719190242744,-151.0,0.00014,2]
[330222931,1719190242754,-158.929551,0.00014,2]
[330222932,1719190242764,-158.929551,0.00014,2]
[330222934,1719190242774,-151.0,0.00014,2]
[330222935,1719190242786,-158.929551,0.00014,2]
[330222937,1719190242795,-151.0,0.00014,2]
[330222939,1719190242804,-158.929551,0.00014,2]
[330222941,1719190242813,-158.929551,0.00014,2]
[330222942,1719190242823,-151.0,0.00014,2]
[330222943,1719190242832,-158.929551,0.00014,2]
[330222944,1719190242841,-151.0,0.00014,2]
[330222945,1719190242851,-151.0,0.00014,2]
[330222946,1719190242860,-158.929551,0.00014,2]
[330222948,1719190242869,-158.929551,0.00014,2]
[330222949,1719190242878,-158.929551,0.00014,2]
[330222951,1719190242887,-158.929551,0.00014,2]
[330222968,1719190243087,-158.929551,0.00014,2]
[330222971,1719190243097,-158.929551,0.00014,2]
[330222975,1719190243107,-151.0,0.00014,2]
[330222978,1719190243116,-151.0,0.00014,2]
[330222982,1719190243125,-151.0,0.00014,2]
[330222986,1719190243134,-151.0,0.00014,2]
[330222991,1719190243144,-151.0,0.00014,2]
[330222994,1719190243153,-151.0,0.00014,2]
[330222999,1719190243163,-228.100728,0.00014,2]
[330223004,1719190243172,-228.100728,0.00014,2]
[330223008,1719190243182,-228.100728,0.00014,2]
[330223011,1719190243191,-228.100728,0.00014,2]
[330223015,1719190243201,-228.100728,0.00014,2]
[330223018,1719190243211,-228.100728,0.00014,2]
[330223020,1719190243220,-228.100728,0.00014,2]
[330223022,1719190243230,-151.0,0.00014,2]
[330223024,1719190243239,-228.100728,0.00014,2]
[330223026,1719190243248,-151.0,0.00014,2]
[330223028,1719190243257,-228.100728,0.00014,2]
[330223029,1719190243266,-169.305853,0.00014,2]
[330223030,1719190243275,-228.100728,0.00014,2]